fUST/lending_fUST_20250528
["ID","MTS","AMOUNT","RATE_DAILY","PERIOD"]
[362745441,1748425832926,-151.0,0.000191,2]
[362745442,1748425832935,-151.0,0.000191,2]
[362745443,1748425832945,-151.0,0.000191,2]
[362745444,1748425832955,-151.0,0.000191,2]
[362745445,1748425832964,-151.0,0.000191,2]
[362745446,1748425832974,-151.0,0.000191,2]
[362745447,1748425832984,-151.0,0.000191,2]
[362745448,1748425832994,-151.0,0.000191,2]
[362745449,1748425833003,-280.538729,0.000191,2]
[362745450,1748425833013,-280.538729,0.000191,2]
[362745451,1748425833022,-152.03751,0.000191,2]
[362745452,1748425833032,-151.0,0.000191,2]
[362745453,1748425833042,-151.0,0.000191,2]
[362745454,1748425833052,-151.0,0.000191,2]
[362745455,1748425833061,-160.0,0.00019138,2]
[362745456,1748425833071,-160.0,0.00019138,2]
[362745457,1748425833081,-212.66609673,0.00019138,2]
[362745458,1748425833091,-160.0,0.00019138,2]
[362745459,1748425833101,-229.229959,0.00019138,2]
[362745460,1748425833116,-423.24161968,0.00019138,2]
[362745461,1748425833127,-4055.90078693,0.00019138,2]
[362745515,1748425838240,-151.0,0.00019,2]
[362745517,1748425838249,-151.0,0.000191,2]
[362745519,1748425838258,-379.06908401,0.00019137,2]
[362745520,1748425838267,-116.24690124,0.00019137,2]
[362746963,1748425858198,231.88849,0.00013699,2]
[362747257,1748425876205,245.13,0.00024657,120]
[362747315,1748426993879,228.565249,0.00013699,2]
[362747425,1748427033088,-4122.7835855,0.00017629,2]
[362747427,1748427033097,-201.37538111,0.00018082,3]
[362747429,1748427033107,-309.10075034,0.0001836,2]
[362747431,1748427033120,-300.0,0.0001836,2]
[362747434,1748427033135,-9395.74815704,0.0001836,3]
[362747436,1748427033151,-22306.33484799,0.00018361,2]
[362747439,1748427033166,-250.0,0.00018559,2]
[362747441,1748427033180,-500.0,0.00018798,2]
[362747443,1748427033192,-500.0,0.00018798,2]
[362747446,1748427033208,-500.0,0.00018798,2]
[362747448,1748427033221,-500.0,0.00018798,2]
[362747451,1748427033235,-500.0,0.00018798,2]
[362747453,1748427033248,-500.0,0.00018798,2]
[362747455,1748427033263,-262.56388161,0.00018798,2]
[362747458,1748427033276,-500.0,0.00018798,2]
[362747460,1748427033289,-500.0,0.00018798,2]
[362747462,1748427033304,-500.0,0.00018798,2]
[362747464,1748427033317,-500.0,0.00018798,2]
[362747466,1748427033329,-500.0,0.00018798,2]
[362747468,1748427033341,-500.0,0.00018798,2]
[362747470,1748427033353,-500.0,0.00018798,2]
[362747471,1748427033365,-500.0,0.00018798,2]
[362747472,1748427033379,-500.0,0.00018798,2]
[362747473,1748427033392,-380.50256289,0.00018798,2]
[362747474,1748427033405,-500.0,0.00018798,2]
[362747475,1748427033415,-500.0,0.00018798,2]
[362747476,1748427033426,-500.0,0.00018798,2]
[362747477,1748427033438,-500.0,0.00018798,2]
[362747478,1748427033449,-565.55528307,0.00018798,2]
[362747479,1748427033461,-500.0,0.00018798,2]
[362747480,1748427033473,-500.0,0.00018798,2]
[362747481,1748427033486,-500.0,0.00018798,2]
[362747482,1748427033497,-500.0,0.00018798,2]
[362747483,1748427033510,-500.0,0.00018798,2]
[362747484,1748427033524,-500.0,0.00018798,2]
[362747486,1748427033537,-53457.65101308,0.00018799,2]
[362747488,1748427033551,-822.82395538,0.00018799,2]
[362747491,1748427033563,-152.0,0.00018828,2]
[362747493,1748427033574,-153.0,0.000189,2]
[362747495,1748427033585,-176.3331419,0.000189,2]
[362747497,1748427033596,-3416.98553927,0.000189,2]
[362747499,1748427033610,-500.0,0.000189,2]
[362747502,1748427033624,-153.0,0.000189,2]
[362747504,1748427033638,-176.3331419,0.000189,2]
[362747506,1748427033649,-315.44661933,0.000189,2]
[362747509,1748427033661,-151.0,0.00019,2]
[362747511,1748427033673,-151.0,0.00019,2]
[362747513,1748427033685,-151.0,0.00019,2]
[362747515,1748427033698,-234.025798,0.00019,2]
[362747518,1748427033710,-151.0,0.00019,2]
[362747520,1748427033721,-154.520992,0.00019,2]
[362747522,1748427033732,-154.337131,0.00019,2]
[362747524,1748427033744,-151.0,0.00019,2]
[362747526,1748427033755,-151.0,0.00019,2]
[362747529,1748427033769,-224.430983,0.00019,2]
[362747531,1748427033780,-224.430983,0.00019,2]
[362747533,1748427033792,-151.0,0.00019,2]
[362747535,1748427033804,-151.0,0.00019,2]
[362747537,1748427033816,-151.0,0.00019,2]
[362747540,1748427033829,-151.0,0.00019,2]
[362747542,1748427033840,-187.3849554,0.00019,2]
[362747544,1748427033852,-153.0,0.00019,2]
[362747546,1748427033863,-153.0,0.00019,2]
[362747548,1748427033875,-213.1056646,0.00019,2]
[362747550,1748427033890,-154.0174884,0.00019,2]
[362747552,1748427033901,-176.3331419,0.00019,2]
[362747555,1748427033912,-2603.58977307,0.00019078,2]
[362747557,1748427033925,-151.0,0.000191,2]
[362747559,1748427033936,-151.0,0.000191,2]
[362747561,1748427033948,-151.0,0.000191,2]
[362747564,1748427033960,-151.0,0.000191,2]
[362747566,1748427033971,-151.0,0.000191,2]
[362747568,1748427033983,-151.0,0.000191,2]
[362747570,1748427033994,-151.0,0.000191,2]
[362747572,1748427034006,-224.430983,0.000191,2]
[362747574,1748427034018,-224.430983,0.000191,2]
[362747576,1748427034029,-151.0,0.000191,2]
[362747579,1748427034040,-151.0,0.000191,2]
[362747581,1748427034051,-151.0,0.000191,2]
[362747583,1748427034063,-151.0,0.000191,2]
[362747585,1748427034075,-3416.98553906,0.00019107,2]
[362747588,1748427034086,-160.0,0.00019135,2]
[362747590,1748427034098,-160.0,0.00019135,2]
[362747592,1748427034110,-160.0,0.00019135,2]
[362747594,1748427034121,-160.0,0.00019135,2]
[362747596,1748427034133,-212.66609673,0.00019135,2]
[362747599,1748427034145,-842.5625,0.00019138,2]
[362747601,1748427034156,-160.0,0.00019138,2]
[362747603,1748427034167,-160.0,0.00019138,2]
[362747605,1748427034179,-207.4,0.00019139,2]
[362747608,1748427034191,-5000.0,0.00019164,2]
[362747610,1748427034202,-288.58943518,0.00019174,2]
[362747612,1748427034214,-10459.02838,0.00019175,2]
[362747614,1748427034226,-423.24161968,0.00019176,2]
[362747616,1748427034237,-160.0,0.00019176,2]
[362747619,1748427034248,-12658.7678854,0.00019176,2]
[362747621,1748427034261,-229.229959,0.00019176,2]
[362747623,1748427034273,-977.72903569,0.00019176,2]
[362747625,1748427034284,-178.37337483,0.00019177,2]
[362747628,1748427034296,-195.293,0.00019177,2]
[362747630,1748427034308,-430.0,0.00019178,2]
[362747632,1748427034319,-317.53179468,0.00019178,2]
[362747634,1748427034331,-507.12,0.00019178,2]
[362747637,1748427034343,-430.0,0.00019178,2]
[362747639,1748427034355,-580.246578,0.00019178,2]
[362747641,1748427034367,-430.0,0.00019178,2]
[362747643,1748427034379,-430.8740387,0.00019178,2]
[362747656,1748427034512,-430.0,0.00019178,2]
[362747657,1748427034557,-430.0,0.00019178,2]
[362747658,1748427034568,-515.89,0.00019178,2]
[362747659,1748427034577,-430.0,0.00019178,2]
[362747661,1748427034590,-430.0,0.00019178,2]
[362747664,1748427034602,-430.0,0.00019178,2]
[362747665,1748427034612,-430.0,0.00019178,2]
[362747666,1748427034623,-1077.12,0.00019178,2]
[362747667,1748427034634,-430.0,0.00019178,2]
[362747668,1748427034644,-430.0,0.00019178,2]
[362747669,1748427034655,-430.0,0.00019178,2]
[362747670,1748427034665,-1500.95,0.00019178,2]
[362747671,1748427034675,-430.0,0.00019178,2]
[362747672,1748427034684,-430.0,0.00019178,2]
[362747673,1748427034695,-430.0,0.00019178,2]
[362747674,1748427034706,-1783.38,0.00019178,2]
[362747675,1748427034716,-476.77,0.00019178,2]
[362747676,1748427034726,-151.0,0.00019178,2]
[362747677,1748427034740,-430.0,0.00019178,2]
[362747678,1748427034750,-500.0,0.00019178,2]
[362747679,1748427034760,-430.0,0.00019178,2]
[362747680,1748427034769,-324.91412866,0.00019178,2]
[362747681,1748427034778,-177.63011701,0.00019178,2]
[362747682,1748427034787,-430.0,0.00019178,2]
[362747683,1748427034797,-430.0,0.00019178,2]
[362747684,1748427034807,-430.0,0.00019178,2]
[362747685,1748427034816,-430.0,0.00019178,2]
[362747686,1748427034825,-430.0,0.00019178,2]
[362747687,1748427034834,-430.0,0.00019178,2]
[362747688,1748427034844,-430.0,0.00019178,2]
[362747689,1748427034854,-477.28,0.00019178,2]
[362747690,1748427034864,-430.0,0.00019178,2]
[362747691,1748427034874,-430.0,0.00019178,2]
[362747692,1748427034886,-430.0,0.00019178,2]
[362747693,1748427034897,-430.0,0.00019178,2]
[362747694,1748427034907,-551.48649874,0.00019178,2]
[362747695,1748427034917,-430.0,0.00019178,2]
[362747696,1748427034926,-430.0,0.00019178,2]
[362747697,1748427034935,-430.0,0.00019178,2]
[362747698,1748427034943,-430.0,0.00019178,2]
[362747699,1748427034951,-228.03758262,0.00019178,2]
[362747700,1748427034959,-430.0,0.00019178,2]
[362747701,1748427034968,-432.71153253,0.00019178,2]
[362747702,1748427034978,-610.37,0.00019178,2]
[362747703,1748427034987,-430.0,0.00019178,2]
[362747704,1748427034996,-2345.39,0.00019178,2]
[362747705,1748427035006,-430.0,0.00019178,2]
[362747706,1748427035016,-503.49133586,0.00019178,2]
[362747707,1748427035026,-430.0,0.00019178,2]
[362747708,1748427035036,-259.68903437,0.00019178,2]
[362747709,1748427035046,-430.0,0.00019178,2]
[362747710,1748427035056,-430.0,0.00019178,2]
[362747711,1748427035066,-430.0,0.00019178,2]
[362747712,1748427035076,-430.0,0.00019178,2]
[362747713,1748427035085,-430.0,0.00019178,2]
[362747714,1748427035095,-430.0,0.00019178,2]
[362747715,1748427035104,-430.0,0.00019178,2]
[362747716,1748427035114,-430.0,0.00019178,2]
[362747717,1748427035124,-383.22753536,0.00019178,2]
[362747718,1748427035134,-699.32,0.00019178,2]
[362747719,1748427035143,-430.0,0.00019178,2]
[362747720,1748427035152,-445.64211707,0.00019178,2]
[362747721,1748427035162,-857.65,0.00019178,2]
[362747722,1748427035173,-1537.14,0.00019178,2]
[362747723,1748427035182,-375.81680347,0.00019178,2]
[362747724,1748427035192,-578.48803937,0.00019178,2]
[362747725,1748427035201,-430.0,0.00019178,2]
[362747726,1748427035210,-410.17207477,0.00019178,2]
[362747727,1748427035220,-430.0,0.00019178,2]
[362747728,1748427035229,-1045.26,0.00019178,2]
[362747729,1748427035238,-430.0,0.00019178,2]
[362747730,1748427035248,-655.64,0.00019178,2]
[362747731,1748427035257,-2101.76,0.00019178,2]
[362747732,1748427035267,-430.0,0.00019178,2]
[362747733,1748427035276,-430.0,0.00019178,2]
[362747734,1748427035286,-430.0,0.00019178,2]
[362747735,1748427035295,-430.0,0.00019178,2]
[362747736,1748427035305,-430.0,0.00019178,2]
[362747737,1748427035315,-430.0,0.00019178,2]
[362747738,1748427035325,-430.0,0.00019178,2]
[362747739,1748427035335,-151.0,0.00019178,2]
[362747740,1748427035344,-327.7917478,0.00019178,2]
[362747741,1748427035354,-430.0,0.00019178,2]
[362747742,1748427035364,-540.0,0.00019178,2]
[362747743,1748427035377,-430.0,0.00019178,2]
[362747744,1748427035386,-151.0,0.00019178,2]
[362747745,1748427035397,-151.0,0.00019178,2]
[362747746,1748427035407,-151.0,0.00019178,2]
[362747747,1748427035417,-430.0,0.00019178,2]
[362747748,1748427035427,-151.0,0.00019178,2]
[362747749,1748427035437,-430.0,0.00019178,2]
[362747750,1748427035446,-430.0,0.00019178,2]
[362747751,1748427035456,-151.0,0.00019178,2]
[362747752,1748427035466,-1162.42,0.00019178,2]
[362747753,1748427035475,-151.0,0.00019178,2]
[362747754,1748427035490,-2318.76,0.00019178,2]
[362747755,1748427035500,-430.0,0.00019178,2]
[362747756,1748427035510,-430.0,0.00019178,2]
[362747757,1748427035519,-151.0,0.00019178,2]
[362747758,1748427035529,-430.0,0.00019178,2]
[362747759,1748427035539,-474.04,0.00019178,2]
[362747760,1748427035548,-4419.03,0.00019178,2]
[362747761,1748427035558,-1139.26,0.00019178,2]
[362747762,1748427035567,-430.0,0.00019178,2]
[362747763,1748427035576,-430.0,0.00019178,2]
[362747764,1748427035586,-2474.07,0.00019178,2]
[362747765,1748427035595,-430.0,0.00019178,2]
[362747766,1748427035605,-430.0,0.00019178,2]
[362747767,1748427035614,-430.0,0.00019178,2]
[362747768,1748427035624,-430.0,0.00019178,2]
[362747769,1748427035635,-430.0,0.00019178,2]
[362747770,1748427035644,-430.0,0.00019178,2]
[362747771,1748427035654,-430.0,0.00019178,2]
[362747772,1748427035664,-430.0,0.00019178,2]
[362747773,1748427035673,-178.497724,0.00019178,2]
[362747774,1748427035683,-2229.0,0.00019197,2]
[362747775,1748427035694,-708.0,0.00019197,2]
[362747776,1748427035705,-484.084,0.00019197,2]
[362747777,1748427035715,-392.2827587,0.00019199,2]
[362747778,1748427035726,-1143.948451,0.000192,2]
[362747779,1748427035736,-176.3331419,0.000192,2]
[362747780,1748427035745,-158.368211,0.000192,2]
[362747781,1748427035755,-158.368211,0.000192,2]
[362747782,1748427035765,-176.3331419,0.000192,2]
[362747783,1748427035775,-571.9742255,0.000192,2]
[362747784,1748427035784,-156.1842153,0.000192,2]
[362747785,1748427035793,-571.9742255,0.000192,2]
[362747786,1748427035802,-571.9742255,0.000192,2]
[362747787,1748427035811,-571.9742255,0.000192,2]
[362747788,1748427035819,-571.9742255,0.000192,2]
[362747789,1748427035827,-544.743964,0.000192,2]
[362747790,1748427035836,-151.0,0.000192,2]
[362747791,1748427035846,-151.0,0.000192,2]
[362747792,1748427035855,-151.0,0.000192,2]
[362747793,1748427035866,-151.0,0.000192,2]
[362747794,1748427035875,-300.99696599,0.00019205,2]
[362747795,1748427035887,-152.0,0.00019252,2]
[362747796,1748427035898,-364.1099385,0.0001926,2]
[362747797,1748427035908,-364.1099385,0.0001926,2]
[362747798,1748427035919,-364.1099385,0.0001926,2]
[362747799,1748427035932,-364.1099385,0.0001926,2]
[362747800,1748427035942,-364.1099385,0.0001926,2]
[362747801,1748427035952,-364.1099385,0.0001926,2]
[362747802,1748427035962,-182.4381755,0.0001926,2]
[362747803,1748427035972,-158.3360012,0.0001926,2]
[362747804,1748427035982,-571.8642545,0.0001926,2]
[362747805,1748427035992,-306.2023857,0.000193,2]
[362747806,1748427036004,-158.368211,0.000193,2]
[362747807,1748427036014,-3416.98553906,0.00019314,2]
[362747808,1748427036024,-151.0,0.00019322,2]
[362747809,1748427036035,-151.0,0.00019322,2]
[362747810,1748427036044,-4547.96,0.00019333,2]
[362747811,1748427036054,-810.62398618,0.0001938,2]
[362747812,1748427036063,-190.8638777,0.000194,2]
[362747813,1748427036072,-176.3331419,0.000194,2]
[362747814,1748427036084,-176.3331419,0.000194,2]
[362747815,1748427036094,-637.0,0.000194,2]
[362747816,1748427036103,-150.329,0.00019429,2]
[362747817,1748427036113,-961.0,0.00019429,2]
[362747818,1748427036122,-647.88347499,0.0001945,2]
[362747819,1748427036133,-509.72724053,0.00019452,2]
[362747820,1748427036142,-430.0,0.00019452,2]
[362747821,1748427036151,-430.0,0.00019452,2]
[362747822,1748427036161,-430.0,0.00019452,2]
[362747823,1748427036171,-430.0,0.00019452,2]
[362747824,1748427036180,-430.0,0.00019452,2]
[362747825,1748427036190,-545.15,0.00019452,2]
[362747826,1748427036200,-430.0,0.00019452,2]
[362747827,1748427036211,-430.0,0.00019452,2]
[362747828,1748427036221,-430.0,0.00019452,2]
[362747829,1748427036231,-503.52,0.00019452,2]
[362747830,1748427036242,-151.0,0.00019452,2]
[362747831,1748427036251,-430.0,0.00019452,2]
[362747832,1748427036262,-151.0,0.00019452,2]
[362747833,1748427036271,-430.0,0.00019452,2]
[362747834,1748427036281,-152.552183,0.00019452,2]
[362747835,1748427036291,-507.12,0.00019452,2]
[362747836,1748427036300,-430.0,0.00019452,2]
[362747837,1748427036310,-430.0,0.00019452,2]
[362747838,1748427036320,-151.0,0.00019452,2]
[362747839,1748427036329,-430.0,0.00019452,2]
[362747840,1748427036339,-430.0,0.00019452,2]
[362747841,1748427036348,-515.89,0.00019452,2]
[362747842,1748427036358,-430.0,0.00019452,2]
[362747843,1748427036367,-151.0,0.00019452,2]
[362747844,1748427036377,-430.0,0.00019452,2]
[362747845,1748427036387,-430.5052941,0.00019452,2]
[362747846,1748427036397,-151.0,0.00019452,2]
[362747847,1748427036406,-151.0,0.00019452,2]
[362747848,1748427036416,-430.0,0.00019452,2]
[362747849,1748427036426,-1077.12,0.00019452,2]
[362747850,1748427036435,-459.77,0.00019452,2]
[362747851,1748427036445,-151.0,0.00019452,2]
[362747852,1748427036455,-151.0,0.00019452,2]
[362747853,1748427036464,-151.0,0.00019452,2]
[362747854,1748427036475,-151.0,0.00019452,2]
[362747855,1748427036484,-151.0,0.00019452,2]
[362747856,1748427036493,-151.0,0.00019452,2]
[362747857,1748427036503,-430.0,0.00019452,2]
[362747858,1748427036512,-151.0,0.00019452,2]
[362747859,1748427036522,-151.0,0.00019452,2]
[362747860,1748427036532,-430.0,0.00019452,2]
[362747861,1748427036542,-151.0,0.00019452,2]
[362747862,1748427036551,-151.0,0.00019452,2]
[362747863,1748427036561,-1500.95,0.00019452,2]
[362747864,1748427036571,-430.0,0.00019452,2]
[362747865,1748427036580,-430.0,0.00019452,2]
[362747866,1748427036590,-224.430983,0.00019452,2]
[362747867,1748427036599,-430.0,0.00019452,2]
[362747868,1748427036609,-224.430983,0.00019452,2]
[362747869,1748427036619,-1783.38,0.00019452,2]
[362747870,1748427036628,-476.77,0.00019452,2]
[362747871,1748427036638,-151.0,0.00019452,2]
[362747872,1748427036648,-538.98697869,0.00019452,2]
[362747873,1748427036658,-500.0,0.00019452,2]
[362747874,1748427036667,-430.0,0.00019452,2]
[362747875,1748427036677,-430.0,0.00019452,2]
[362747876,1748427036686,-430.0,0.00019452,2]
[362747877,1748427036698,-430.0,0.00019452,2]
[362747878,1748427036708,-430.0,0.00019452,2]
[362747879,1748427036717,-151.0,0.00019452,2]
[362747880,1748427036727,-477.28,0.00019452,2]
[362747881,1748427036736,-430.0,0.00019452,2]
[362747882,1748427036744,-430.0,0.00019452,2]
[362747883,1748427036752,-430.0,0.00019452,2]
[362747884,1748427036760,-430.0,0.00019452,2]
[362747885,1748427036770,-282.06019713,0.00019452,2]
[362747886,1748427036778,-480.37181364,0.00019452,2]
[362747887,1748427036787,-430.0,0.00019452,2]
[362747888,1748427036795,-430.0,0.00019452,2]
[362747889,1748427036803,-610.37,0.00019452,2]
[362747890,1748427036813,-196.87163836,0.00019452,2]
[362747891,1748427036823,-2345.39,0.00019452,2]
[362747892,1748427036832,-430.0,0.00019452,2]
[362747893,1748427036842,-430.0,0.00019452,2]
[362747894,1748427036852,-410.72916472,0.00019452,2]
[362747895,1748427036862,-430.0,0.00019452,2]
[362747896,1748427036871,-430.0,0.00019452,2]
[362747897,1748427036885,-430.0,0.00019452,2]
[362747898,1748427036895,-430.0,0.00019452,2]
[362747899,1748427036905,-430.0,0.00019452,2]
[362747900,1748427036914,-699.32,0.00019452,2]
[362747901,1748427036924,-430.0,0.00019452,2]
[362747902,1748427036933,-857.65,0.00019452,2]
[362747903,1748427036943,-1537.14,0.00019452,2]
[362747904,1748427036953,-430.0,0.00019452,2]
[362747905,1748427036963,-430.0,0.00019452,2]
[362747906,1748427036973,-1045.26,0.00019452,2]
[362747907,1748427036982,-151.0,0.00019452,2]
[362747908,1748427036991,-430.0,0.00019452,2]
[362747909,1748427037000,-655.64,0.00019452,2]
[362747910,1748427037010,-2101.76,0.00019452,2]
[362747911,1748427037020,-430.0,0.00019452,2]
[362747912,1748427037029,-430.0,0.00019452,2]
[362747913,1748427037039,-430.0,0.00019452,2]
[362747914,1748427037048,-297.7317,0.00019452,2]
[362747915,1748427037057,-181.248907,0.00019452,2]
[362747916,1748427037067,-151.0,0.00019452,2]
[362747917,1748427037077,-151.0,0.00019452,2]
[362747918,1748427037086,-430.0,0.00019452,2]
[362747919,1748427037095,-430.0,0.00019452,2]
[362747920,1748427037105,-151.0,0.00019452,2]
[362747921,1748427037114,-151.0,0.00019452,2]
[362747922,1748427037123,-151.0,0.00019452,2]
[362747923,1748427037133,-151.0,0.00019452,2]
[362747924,1748427037142,-151.0,0.00019452,2]
[362747925,1748427037151,-151.0,0.00019452,2]
[362747926,1748427037161,-151.0,0.00019452,2]
[362747927,1748427037170,-151.0,0.00019452,2]
[362747928,1748427037278,-430.0,0.00019452,2]
[362747929,1748427037288,-154.921495,0.00019452,2]
[362747930,1748427037297,-430.0,0.00019452,2]
[362747931,1748427037306,-430.0,0.00019452,2]
[362747932,1748427037316,-151.0,0.00019452,2]
[362747933,1748427037325,-151.0,0.00019452,2]
[362747934,1748427037335,-1162.42,0.00019452,2]
[362747935,1748427037344,-276.66025,0.00019452,2]
[362747936,1748427037353,-2318.76,0.00019452,2]
[362747937,1748427037362,-430.0,0.00019452,2]
[362747938,1748427037371,-151.0,0.00019452,2]
[362747939,1748427037380,-151.0,0.00019452,2]
[362747940,1748427037390,-430.0,0.00019452,2]
[362747941,1748427037399,-474.04,0.00019452,2]
[362747942,1748427037408,-4419.03,0.00019452,2]
[362747943,1748427037418,-1139.26,0.00019452,2]
[362747944,1748427037429,-2474.07,0.00019452,2]
[362747945,1748427037438,-430.0,0.00019452,2]
[362747946,1748427037448,-430.0,0.00019452,2]
[362747947,1748427037458,-430.0,0.00019452,2]
[362747948,1748427037468,-430.0,0.00019452,2]
[362747949,1748427037478,-457.46,0.00019452,2]
[362747950,1748427037488,-430.0,0.00019452,2]
[362747951,1748427037498,-430.0,0.00019452,2]
[362747952,1748427037509,-2603.58977303,0.00019489,2]
[362747953,1748427037519,-1501.42049,0.000195,2]
[362747954,1748427037528,-164.3,0.000195,2]
[362747955,1748427037538,-164.3,0.000195,2]
[362747956,1748427037548,-164.3,0.000195,2]
[362747957,1748427037558,-2885.6,0.000195,2]
[362747958,1748427037568,-2885.6,0.000195,2]
[362747959,1748427037578,-151.0,0.000195,2]
[362747960,1748427037588,-204.09957499,0.000195,2]
[362747961,1748427037598,-3416.98553906,0.00019521,2]
[362747962,1748427037607,-500.0,0.00019529,2]
[362747963,1748427037618,-258.89222947,0.00019638,2]
[362747964,1748427037627,-171.11283277,0.00019638,2]
[362747965,1748427037637,-160.08529766,0.00019638,2]
[362747966,1748427037647,-500.0,0.00019638,2]
[362747967,1748427037657,-16177.82449525,0.0001966,2]
[362747968,1748427037669,-151.0,0.0001966,2]
[362747969,1748427037679,-151.0,0.0001966,2]
[362747970,1748427037689,-151.0,0.0001966,2]
[362747971,1748427037698,-151.0,0.0001966,2]
[362747972,1748427037708,-151.0,0.0001966,2]
[362747973,1748427037718,-822.82395533,0.00019671,2]
[362747974,1748427037728,-5000.0,0.00019712,2]
[362747975,1748427037739,-158.60450679,0.00019718,2]
[362747976,1748427037749,-262.12491607,0.00019718,2]
[362747977,1748427037759,-500.0,0.00019718,2]
[362747978,1748427037769,-500.0,0.00019718,2]
[362747979,1748427037779,-224.09042141,0.00019718,2]
[362747980,1748427037789,-430.0,0.00019726,2]
[362747981,1748427037799,-430.0,0.00019726,2]
[362747982,1748427037809,-430.0,0.00019726,2]
[362747984,1748427037818,-430.0,0.00019726,2]
[362747985,1748427037828,-430.0,0.00019726,2]
[362747986,1748427037839,-545.15,0.00019726,2]
[362747987,1748427037848,-430.0,0.00019726,2]
[362747988,1748427037858,-430.0,0.00019726,2]
[362747990,1748427037869,-430.0,0.00019726,2]
[362747991,1748427037878,-503.52,0.00019726,2]
[362747992,1748427037889,-430.0,0.00019726,2]
[362747993,1748427037899,-430.0,0.00019726,2]
[362747994,1748427037908,-507.12,0.00019726,2]
[362747995,1748427037917,-430.0,0.00019726,2]
[362747996,1748427037927,-305.0,0.00019726,2]
[362747997,1748427037936,-430.0,0.00019726,2]
[362747998,1748427037945,-430.0,0.00019726,2]
[362748001,1748427037954,-515.89,0.00019726,2]
[362748003,1748427037963,-430.0,0.00019726,2]
[362748005,1748427037973,-430.0,0.00019726,2]
[362748006,1748427037982,-430.0,0.00019726,2]
[362748007,1748427037992,-1077.12,0.00019726,2]
[362748008,1748427038002,-430.0,0.00019726,2]
[362748009,1748427038013,-430.0,0.00019726,2]
[362748010,1748427038022,-1500.95,0.00019726,2]
[362748011,1748427038031,-430.0,0.00019726,2]
[362748012,1748427038041,-430.0,0.00019726,2]
[362748013,1748427038050,-430.0,0.00019726,2]
[362748014,1748427038060,-1783.38,0.00019726,2]
[362748015,1748427038070,-476.77,0.00019726,2]
[362748016,1748427038080,-500.0,0.00019726,2]
[362748017,1748427038089,-430.0,0.00019726,2]
[362748018,1748427038099,-430.0,0.00019726,2]
[362748019,1748427038108,-430.0,0.00019726,2]
[362748020,1748427038118,-430.0,0.00019726,2]
[362748021,1748427038127,-430.0,0.00019726,2]
[362748022,1748427038136,-477.28,0.00019726,2]
[362748023,1748427038146,-430.0,0.00019726,2]
[362748024,1748427038155,-430.0,0.00019726,2]
[362748025,1748427038164,-430.0,0.00019726,2]
[362748026,1748427038177,-430.0,0.00019726,2]
[362748027,1748427038186,-430.0,0.00019726,2]
[362748028,1748427038196,-430.0,0.00019726,2]
[362748029,1748427038205,-610.37,0.00019726,2]